fUST/lending_fUST_20250626
["ID","MTS","AMOUNT","RATE_DAILY","PERIOD"]
[367822987,1750936248687,-460.0,0.00017534,2]
[367822988,1750936248697,-460.0,0.00017534,2]
[367822990,1750936248706,-460.0,0.00017534,2]
[367822992,1750936248716,-509.08070843,0.00017534,2]
[367822994,1750936248725,-460.0,0.00017534,2]
[367822996,1750936248735,-460.0,0.00017534,2]
[367822998,1750936248744,-434.08880575,0.00017534,2]
[367823000,1750936248755,-460.0,0.00017534,2]
[367823002,1750936248764,-460.0,0.00017534,2]
[367823004,1750936248774,-460.0,0.00017534,2]
[367823006,1750936248783,-460.0,0.00017534,2]
[367823008,1750936248793,-476.93,0.00017534,2]
[367823010,1750936248802,-460.0,0.00017534,2]
[367823012,1750936248812,-460.0,0.00017534,2]
[367823014,1750936248821,-460.0,0.00017534,2]
[367823016,1750936248831,-482.19547621,0.00017534,2]
[367823018,1750936248840,-460.0,0.00017534,2]
[367823020,1750936248849,-460.0,0.00017534,2]
[367823021,1750936248859,-460.0,0.00017534,2]
[367823022,1750936248869,-460.0,0.00017534,2]
[367823023,1750936248878,-460.0,0.00017534,2]
[367823025,1750936248889,-460.0,0.00017534,2]
[367823027,1750936248899,-460.0,0.00017534,2]
[367823029,1750936248908,-460.0,0.00017534,2]
[367823031,1750936248918,-460.0,0.00017534,2]
[367823033,1750936248927,-460.0,0.00017534,2]
[367823035,1750936248937,-460.0,0.00017534,2]
[367823037,1750936248947,-460.0,0.00017534,2]
[367823039,1750936248958,-597.38,0.00017534,2]
[367823040,1750936248968,-460.0,0.00017534,2]
[367823041,1750936248977,-460.0,0.00017534,2]
[367823042,1750936248987,-460.0,0.00017534,2]
[367823043,1750936248996,-460.0,0.00017534,2]
[367823044,1750936249006,-460.0,0.00017534,2]
[367823045,1750936249016,-460.0,0.00017534,2]
[367823046,1750936249025,-460.0,0.00017534,2]
[367823047,1750936249035,-454.48104822,0.00017534,2]
[367823048,1750936249044,-460.0,0.00017534,2]
[367823049,1750936249054,-460.0,0.00017534,2]
[367823050,1750936249064,-460.0,0.00017534,2]
[367823051,1750936249073,-460.0,0.00017534,2]
[367823052,1750936249083,-463.0,0.00017534,2]
[367823053,1750936249094,-3070.64,0.00017534,2]
[367823054,1750936249104,-460.0,0.00017534,2]
[367823055,1750936249113,-460.0,0.00017534,2]
[367823056,1750936249123,-460.0,0.00017534,2]
[367823057,1750936249133,-1127.46,0.00017534,2]
[367823058,1750936249143,-460.0,0.00017534,2]
[367823059,1750936249153,-500.1,0.00017534,2]
[367823060,1750936249162,-460.0,0.00017534,2]
[367823061,1750936249172,-486.34,0.00017534,2]
[367823062,1750936249181,-460.0,0.00017534,2]
[367823063,1750936249190,-502.15,0.00017534,2]
[367823064,1750936249199,-741.01,0.00017534,2]
[367823065,1750936249210,-460.0,0.00017534,2]
[367823066,1750936249220,-460.0,0.00017534,2]
[367823067,1750936249229,-460.0,0.00017534,2]
[367823068,1750936249240,-460.0,0.00017534,2]
[367823069,1750936249253,-585.48,0.00017534,2]
[367823070,1750936249262,-460.0,0.00017534,2]
[367823071,1750936249272,-1171.0,0.00017534,2]
[367823072,1750936249282,-1274.93,0.00017534,2]
[367823073,1750936249292,-460.0,0.00017534,2]
[367823074,1750936249302,-460.0,0.00017534,2]
[367823075,1750936249312,-1936.68,0.00017534,2]
[367823076,1750936249321,-658.14,0.00017534,2]
[367823077,1750936249331,-495.95,0.00017534,2]
[367823078,1750936249341,-460.0,0.00017534,2]
[367823079,1750936249352,-506.76,0.00017534,2]
[367823080,1750936249361,-660.59,0.00017534,2]
[367823081,1750936249371,-460.0,0.00017534,2]
[367823082,1750936249380,-460.0,0.00017534,2]
[367823083,1750936249390,-604.08,0.00017534,2]
[367823084,1750936249399,-2008.32,0.00017534,2]
[367823085,1750936249409,-461.68,0.00017534,2]
[367823086,1750936249419,-2634.32,0.00017534,2]
[367823087,1750936249428,-460.0,0.00017534,2]
[367823088,1750936249437,-936.25,0.00017534,2]
[367823089,1750936249446,-1291.06,0.00017534,2]
[367823090,1750936249456,-460.0,0.00017534,2]
[367823091,1750936249466,-461.71,0.00017534,2]
[367823092,1750936249476,-460.0,0.00017534,2]
[367823093,1750936249486,-460.0,0.00017534,2]
[367823094,1750936249495,-595.56474963,0.00017534,2]
[367823095,1750936249505,-982.95,0.00017534,2]
[367823096,1750936249514,-460.0,0.00017534,2]
[367823097,1750936249523,-460.0,0.00017534,2]
[367823098,1750936249532,-460.0,0.00017534,2]
[367823099,1750936249542,-1441.22,0.00017534,2]
[367823100,1750936249552,-460.0,0.00017534,2]
[367823101,1750936249562,-460.0,0.00017534,2]
[367823102,1750936249571,-460.0,0.00017534,2]
[367823103,1750936249580,-1583.9,0.00017534,2]
[367823104,1750936249590,-460.0,0.00017534,2]
[367823105,1750936249600,-1308.06,0.00017534,2]
[367823106,1750936249609,-1242.42,0.00017534,2]
[367823107,1750936249619,-460.0,0.00017534,2]
[367823108,1750936249628,-630.68,0.00017534,2]
[367823109,1750936249637,-460.0,0.00017534,2]
[367823110,1750936249646,-460.0,0.00017534,2]
[367823111,1750936249656,-531.49,0.00017534,2]
[367823112,1750936249665,-989.78,0.00017534,2]
[367823113,1750936249675,-460.0,0.00017534,2]
[367823114,1750936249684,-460.0,0.00017534,2]
[367823115,1750936249693,-460.0,0.00017534,2]
[367823116,1750936249702,-460.0,0.00017534,2]
[367823117,1750936249712,-460.0,0.00017534,2]
[367823118,1750936249721,-460.0,0.00017534,2]
[367823119,1750936249731,-2974.27,0.00017534,2]
[367823120,1750936249740,-606.11,0.00017534,2]
[367823121,1750936249749,-479.01,0.00017534,2]
[367823122,1750936249759,-210.35241299,0.00017534,2]
[367823123,1750936249769,-922.68,0.00017534,2]
[367823124,1750936249916,-1630.67,0.00017534,2]
[367823125,1750936249927,-497.3,0.00017534,2]
[367823126,1750936249936,-694.28,0.00017534,2]
[367823127,1750936249945,-460.0,0.00017534,2]
[367823128,1750936249954,-169.97346394,0.00017534,2]
[367823129,1750936249965,-460.0,0.00017534,2]
[367823130,1750936249974,-460.0,0.00017534,2]
[367823131,1750936249984,-485.13560277,0.00017534,2]
[367823132,1750936249993,-489.26,0.00017534,2]
[367823133,1750936250004,-640.74,0.00017534,2]
[367823134,1750936250013,-1849.57,0.00017534,2]
[367823135,1750936250023,-1090.54,0.00017534,2]
[367823136,1750936250033,-460.0,0.00017534,2]
[367823137,1750936250043,-460.0,0.00017534,2]
[367823138,1750936250057,-500.0,0.00017568,2]
[367823139,1750936250069,-1180.05644866,0.00017629,2]
[367823140,1750936250079,-1000.0,0.00017645,2]
[367823141,1750936250088,-500.0,0.00017674,2]
[367823142,1750936250098,-500.41164183,0.00017674,2]
[367823143,1750936250108,-500.0,0.00017674,2]
[367823144,1750936250120,-500.0,0.00017698,2]
[367823145,1750936250130,-580.8694489,0.00017698,2]
[367823146,1750936250141,-500.08046788,0.00017698,2]
[367823147,1750936250150,-500.0,0.00017698,2]
[367823148,1750936250161,-500.0,0.0001778,2]
[367823149,1750936250171,-151.0,0.0001778,2]
[367823150,1750936250180,-201.65179822,0.0001778,2]
[367823151,1750936250190,-151.0,0.0001778,2]
[367823152,1750936250199,-151.0,0.0001778,2]
[367823153,1750936250209,-152.6351556,0.0001778,2]
[367823154,1750936250218,-151.8099724,0.0001778,2]
[367823155,1750936250227,-151.0,0.0001778,2]
[367823156,1750936250237,-151.0,0.0001778,2]
[367823157,1750936250248,-500.0,0.00017807,2]
[367823158,1750936250260,-151.0,0.00017807,2]
[367823159,1750936250269,-151.0,0.00017807,2]
[367823160,1750936250280,-213.51501345,0.00017807,2]
[367823161,1750936250289,-151.29765514,0.00017807,2]
[367823162,1750936250299,-460.0,0.00017808,2]
[367823163,1750936250308,-460.0,0.00017808,2]
[367823164,1750936250317,-525.6333627,0.00017808,2]
[367823165,1750936250327,-460.0,0.00017808,2]
[367823166,1750936250336,-460.0,0.00017808,2]
[367823167,1750936250346,-460.0,0.00017808,2]
[367823168,1750936250355,-460.0,0.00017808,2]
[367823169,1750936250364,-460.0,0.00017808,2]
[367823170,1750936250373,-460.0,0.00017808,2]
[367823171,1750936250382,-460.0,0.00017808,2]
[367823172,1750936250391,-460.0,0.00017808,2]
[367823173,1750936250400,-460.0,0.00017808,2]
[367823174,1750936250409,-476.93,0.00017808,2]
[367823175,1750936250418,-568.8364215,0.00017808,2]
[367823176,1750936250427,-460.0,0.00017808,2]
[367823177,1750936250436,-460.0,0.00017808,2]
[367823178,1750936250446,-460.0,0.00017808,2]
[367823179,1750936250455,-460.0,0.00017808,2]
[367823180,1750936250464,-460.0,0.00017808,2]
[367823181,1750936250473,-460.0,0.00017808,2]
[367823182,1750936250482,-460.0,0.00017808,2]
[367823183,1750936250491,-460.0,0.00017808,2]
[367823184,1750936250500,-460.0,0.00017808,2]
[367823185,1750936250510,-460.0,0.00017808,2]
[367823186,1750936250519,-460.0,0.00017808,2]
[367823187,1750936250528,-460.0,0.00017808,2]
[367823188,1750936250538,-460.0,0.00017808,2]
[367823189,1750936250547,-597.38,0.00017808,2]
[367823190,1750936250557,-460.0,0.00017808,2]
[367823191,1750936250566,-460.0,0.00017808,2]
[367823192,1750936250575,-460.0,0.00017808,2]
[367823193,1750936250585,-460.0,0.00017808,2]
[367823194,1750936250594,-460.0,0.00017808,2]
[367823195,1750936250603,-460.0,0.00017808,2]
[367823196,1750936250614,-212.36,0.00017808,2]
[367823197,1750936250623,-460.0,0.00017808,2]
[367823198,1750936250633,-460.0,0.00017808,2]
[367823199,1750936250642,-463.0,0.00017808,2]
[367823200,1750936250651,-3070.64,0.00017808,2]
[367823201,1750936250660,-460.0,0.00017808,2]
[367823202,1750936250670,-460.0,0.00017808,2]
[367823203,1750936250680,-1127.46,0.00017808,2]
[367823204,1750936250689,-500.1,0.00017808,2]
[367823205,1750936250699,-460.0,0.00017808,2]
[367823206,1750936250708,-486.34,0.00017808,2]
[367823207,1750936250718,-460.0,0.00017808,2]
[367823208,1750936250727,-502.15,0.00017808,2]
[367823209,1750936250737,-741.01,0.00017808,2]
[367823210,1750936250747,-460.0,0.00017808,2]
[367823211,1750936250757,-460.0,0.00017808,2]
[367823212,1750936250766,-460.0,0.00017808,2]
[367823213,1750936250775,-460.0,0.00017808,2]
[367823214,1750936250785,-585.48,0.00017808,2]
[367823215,1750936250794,-460.0,0.00017808,2]
[367823216,1750936250804,-1171.0,0.00017808,2]
[367823217,1750936250813,-1274.93,0.00017808,2]
[367823218,1750936250822,-460.0,0.00017808,2]
[367823219,1750936250832,-460.0,0.00017808,2]
[367823220,1750936250841,-1936.68,0.00017808,2]
[367823221,1750936250850,-658.14,0.00017808,2]
[367823222,1750936250859,-495.95,0.00017808,2]
[367823223,1750936250868,-460.0,0.00017808,2]
[367823224,1750936250878,-506.76,0.00017808,2]
[367823225,1750936250887,-660.59,0.00017808,2]
[367823226,1750936250897,-460.0,0.00017808,2]
[367823227,1750936250906,-460.0,0.00017808,2]
[367823228,1750936250915,-604.08,0.00017808,2]
[367823229,1750936250924,-2008.32,0.00017808,2]
[367823230,1750936250934,-461.68,0.00017808,2]
[367823231,1750936250943,-2634.32,0.00017808,2]
[367823232,1750936250953,-460.0,0.00017808,2]
[367823233,1750936250963,-936.25,0.00017808,2]
[367823234,1750936250972,-1291.06,0.00017808,2]
[367823235,1750936250981,-460.0,0.00017808,2]
[367823236,1750936250991,-461.71,0.00017808,2]
[367823237,1750936251000,-460.0,0.00017808,2]
[367823238,1750936251011,-460.0,0.00017808,2]
[367823239,1750936251020,-982.95,0.00017808,2]
[367823240,1750936251029,-460.0,0.00017808,2]
[367823241,1750936251039,-460.0,0.00017808,2]
[367823242,1750936251048,-460.0,0.00017808,2]
[367823243,1750936251057,-1441.22,0.00017808,2]
[367823244,1750936251067,-460.0,0.00017808,2]
[367823245,1750936251076,-460.0,0.00017808,2]
[367823246,1750936251086,-460.0,0.00017808,2]
[367823247,1750936251095,-1583.9,0.00017808,2]
[367823248,1750936251104,-460.0,0.00017808,2]
[367823249,1750936251114,-1308.06,0.00017808,2]
[367823250,1750936251123,-1242.42,0.00017808,2]
[367823251,1750936251133,-630.68,0.00017808,2]
[367823252,1750936251143,-460.0,0.00017808,2]
[367823253,1750936251152,-460.0,0.00017808,2]
[367823254,1750936251162,-531.49,0.00017808,2]
[367823255,1750936251171,-989.78,0.00017808,2]
[367823256,1750936251180,-460.0,0.00017808,2]
[367823257,1750936251191,-460.0,0.00017808,2]
[367823258,1750936251200,-460.0,0.00017808,2]
[367823259,1750936251211,-460.0,0.00017808,2]
[367823260,1750936251221,-460.0,0.00017808,2]
[367823261,1750936251230,-460.0,0.00017808,2]
[367823262,1750936251242,-2974.27,0.00017808,2]
[367823263,1750936251252,-479.01,0.00017808,2]
[367823264,1750936251262,-922.68,0.00017808,2]
[367823265,1750936251271,-1630.67,0.00017808,2]
[367823266,1750936251281,-497.3,0.00017808,2]
[367823267,1750936251292,-694.28,0.00017808,2]
[367823268,1750936251302,-460.0,0.00017808,2]
[367823269,1750936251312,-460.0,0.00017808,2]
[367823270,1750936251321,-460.0,0.00017808,2]
[367823271,1750936251331,-489.26,0.00017808,2]
[367823272,1750936251341,-640.74,0.00017808,2]
[367823273,1750936251351,-1849.57,0.00017808,2]
[367823274,1750936251361,-1090.54,0.00017808,2]
[367823275,1750936251371,-460.0,0.00017808,2]
[367823276,1750936251380,-460.0,0.00017808,2]
[367823277,1750936251389,-1404.33044719,0.00017828,2]
[367823278,1750936251398,-500.0,0.00017835,2]
[367823279,1750936251408,-500.0,0.00017862,2]
[367823280,1750936251417,-500.0,0.0001789,2]
[367823281,1750936251427,-2004.58161448,0.000179,2]
[367823282,1750936251437,-500.0,0.00017917,2]
[367823283,1750936251447,-500.0,0.00017944,2]
[367823284,1750936251456,-420.0,0.00017963,2]
[367823285,1750936251467,-500.0,0.00017972,2]
[367823286,1750936251476,-496.48855278,0.00017982,2]
[367823287,1750936251487,-500.0,0.00017999,2]
[367823288,1750936251496,-590.10000001,0.00018027,2]
[367823289,1750936251506,-836.92866116,0.00018028,2]
[367823290,1750936251515,-230.24506774,0.00018028,2]
[367823291,1750936251525,-160.0,0.00018028,2]
[367823292,1750936251535,-160.0,0.00018028,2]
[367823293,1750936251545,-12560.17507789,0.00018028,2]
[367823294,1750936251554,-425.22527846,0.00018028,2]
[367823295,1750936251564,-213.72380786,0.00018028,2]
[367823296,1750936251573,-846.92323443,0.00018028,2]
[367823297,1750936251583,-160.0,0.00018028,2]
[367823298,1750936251592,-160.0,0.00018028,2]
[367823299,1750936251601,-524.25751634,0.00018028,2]
[367823300,1750936251611,-160.0,0.00018028,2]
[367823301,1750936251621,-2013.26645232,0.00018049,2]
[367823302,1750936251631,-1000.0,0.00018063,2]
[367823303,1750936251640,-500.0,0.00018063,2]
[367823304,1750936251650,-798.58513118,0.00018063,2]
[367823305,1750936251659,-1000.0,0.00018063,2]
[367823306,1750936251668,-151.0,0.00018082,2]
[367823307,1750936251677,-151.0,0.00018082,2]
[367823308,1750936251688,-460.0,0.00018082,2]
[367823309,1750936251697,-460.0,0.00018082,2]
[367823310,1750936251707,-460.0,0.00018082,2]
[367823311,1750936251717,-400.0,0.00018082,2]
[367823312,1750936251726,-460.0,0.00018082,2]
[367823313,1750936251736,-467.18,0.00018082,2]
[367823314,1750936251746,-460.0,0.00018082,2]
[367823315,1750936251968,-460.0,0.00018082,2]
[367823316,1750936251977,-460.0,0.00018082,2]
[367823317,1750936251987,-476.93,0.00018082,2]
[367823318,1750936251996,-460.0,0.00018082,2]
[367823319,1750936252007,-460.0,0.00018082,2]
[367823320,1750936252016,-502.66720533,0.00018082,2]
[367823321,1750936252025,-460.0,0.00018082,2]
[367823322,1750936252035,-461.10972175,0.00018082,2]
[367823323,1750936252044,-460.0,0.00018082,2]
[367823324,1750936252053,-460.0,0.00018082,2]
[367823325,1750936252063,-460.0,0.00018082,2]
[367823326,1750936252073,-460.0,0.00018082,2]
[367823327,1750936252082,-460.0,0.00018082,2]
[367823328,1750936252092,-460.0,0.00018082,2]
[367823329,1750936252101,-460.0,0.00018082,2]
[367823330,1750936252110,-597.38,0.00018082,2]
[367823331,1750936252120,-460.0,0.00018082,2]
[367823332,1750936252129,-460.0,0.00018082,2]
[367823333,1750936252138,-460.0,0.00018082,2]
[367823334,1750936252148,-460.0,0.00018082,2]
[367823335,1750936252157,-460.0,0.00018082,2]
[367823336,1750936252167,-460.0,0.00018082,2]
[367823337,1750936252176,-460.0,0.00018082,2]
[367823338,1750936252185,-460.0,0.00018082,2]
[367823339,1750936252194,-3070.64,0.00018082,2]
[367823340,1750936252204,-463.0,0.00018082,2]
[367823341,1750936252213,-240.0,0.00018082,2]
[367823342,1750936252223,-460.0,0.00018082,2]
[367823343,1750936252232,-1127.46,0.00018082,2]
[367823344,1750936252245,-500.1,0.00018082,2]
[367823345,1750936252255,-460.0,0.00018082,2]
[367823346,1750936252264,-486.34,0.00018082,2]
[367823347,1750936252273,-460.0,0.00018082,2]
[367823348,1750936252283,-502.15,0.00018082,2]
[367823349,1750936252292,-741.01,0.00018082,2]
[367823350,1750936252301,-460.0,0.00018082,2]
[367823351,1750936252311,-370.80919601,0.00018082,2]
[367823352,1750936252321,-460.0,0.00018082,2]
[367823353,1750936252331,-460.0,0.00018082,2]
[367823354,1750936252341,-585.48,0.00018082,2]
[367823355,1750936252350,-460.0,0.00018082,2]
[367823356,1750936252359,-1171.0,0.00018082,2]
[367823357,1750936252369,-1274.93,0.00018082,2]
[367823358,1750936252378,-460.0,0.00018082,2]
[367823359,1750936252387,-460.0,0.00018082,2]
[367823360,1750936252397,-1936.68,0.00018082,2]
[367823361,1750936252406,-658.14,0.00018082,2]
[367823362,1750936252416,-495.95,0.00018082,2]
[367823363,1750936252425,-460.0,0.00018082,2]
[367823364,1750936252434,-506.76,0.00018082,2]
[367823365,1750936252443,-660.59,0.00018082,2]
[367823366,1750936252454,-460.0,0.00018082,2]
[367823367,1750936252463,-460.0,0.00018082,2]
[367823368,1750936252474,-604.08,0.00018082,2]
[367823369,1750936252484,-2008.32,0.00018082,2]
[367823370,1750936252493,-461.68,0.00018082,2]
[367823371,1750936252538,-2634.32,0.00018082,2]
[367823372,1750936252549,-460.0,0.00018082,2]
[367823373,1750936252558,-936.25,0.00018082,2]
[367823374,1750936252567,-1291.06,0.00018082,2]
[367823375,1750936252577,-460.0,0.00018082,2]
[367823376,1750936252586,-461.71,0.00018082,2]
[367823377,1750936252595,-460.0,0.00018082,2]
[367823378,1750936252605,-353.29176545,0.00018082,2]
[367823379,1750936252614,-982.95,0.00018082,2]
[367823380,1750936252623,-460.0,0.00018082,2]
[367823381,1750936252633,-460.0,0.00018082,2]
[367823382,1750936252644,-460.0,0.00018082,2]
[367823383,1750936252653,-1441.22,0.00018082,2]
[367823384,1750936252664,-460.0,0.00018082,2]
[367823385,1750936252674,-460.0,0.00018082,2]
[367823386,1750936252685,-460.0,0.00018082,2]
[367823387,1750936252694,-1583.9,0.00018082,2]
[367823388,1750936252703,-460.0,0.00018082,2]
[367823389,1750936252713,-1308.06,0.00018082,2]
[367823390,1750936252722,-1242.42,0.00018082,2]
[367823391,1750936252731,-630.68,0.00018082,2]
[367823392,1750936252742,-460.0,0.00018082,2]
[367823393,1750936252752,-460.0,0.00018082,2]
[367823394,1750936252762,-531.49,0.00018082,2]
[367823395,1750936252773,-989.78,0.00018082,2]
[367823396,1750936252783,-460.0,0.00018082,2]
[367823397,1750936252794,-460.0,0.00018082,2]
[367823398,1750936252803,-460.0,0.00018082,2]
[367823399,1750936252813,-460.0,0.00018082,2]
[367823400,1750936252822,-460.0,0.00018082,2]
[367823401,1750936252832,-2974.27,0.00018082,2]
[367823402,1750936252844,-479.01,0.00018082,2]
[367823403,1750936252853,-922.68,0.00018082,2]
[367823404,1750936252862,-1630.67,0.00018082,2]
[367823405,1750936252872,-497.3,0.00018082,2]
[367823406,1750936252881,-694.28,0.00018082,2]
[367823407,1750936252893,-460.0,0.00018082,2]
[367823408,1750936252902,-460.0,0.00018082,2]
[367823409,1750936252912,-460.0,0.00018082,2]
[367823410,1750936252921,-489.26,0.00018082,2]
[367823411,1750936252932,-640.74,0.00018082,2]
[367823412,1750936252942,-1849.57,0.00018082,2]
[367823413,1750936252952,-1090.54,0.00018082,2]
[367823414,1750936252961,-460.0,0.00018082,2]
[367823415,1750936252970,-460.0,0.00018082,2]
[367823416,1750936252980,-1000.0,0.00018116,2]
[367823417,1750936252989,-2004.58161438,0.00018141,2]
[367823418,1750936252998,-1500.0,0.00018193,2]
[367823419,1750936253007,-500.0,0.00018222,2]
[367823420,1750936253016,-1000.0,0.00018222,2]
[367823421,1750936253028,-501.8969566,0.00018246,2]
[367823422,1750936253037,-565.68,0.00018356,2]
[367823423,1750936253046,-170.05119074,0.00018356,2]
[367823424,1750936253055,-460.0,0.00018356,2]
[367823425,1750936253064,-460.0,0.00018356,2]
[367823426,1750936253073,-460.0,0.00018356,2]
[367823427,1750936253082,-460.0,0.00018356,2]
[367823428,1750936253091,-476.93,0.00018356,2]
[367823429,1750936253100,-460.0,0.00018356,2]
[367823430,1750936253109,-460.0,0.00018356,2]
[367823431,1750936253118,-460.0,0.00018356,2]
[367823432,1750936253128,-460.0,0.00018356,2]
[367823433,1750936253137,-460.0,0.00018356,2]
[367823434,1750936253146,-460.0,0.00018356,2]
[367823435,1750936253155,-460.0,0.00018356,2]
[367823436,1750936253164,-460.0,0.00018356,2]
[367823437,1750936253173,-597.38,0.00018356,2]
[367823438,1750936253183,-460.0,0.00018356,2]
[367823439,1750936253192,-460.0,0.00018356,2]
[367823440,1750936253201,-460.0,0.00018356,2]
[367823441,1750936253210,-460.0,0.00018356,2]
[367823442,1750936253220,-571.24543167,0.00018356,2]
[367823443,1750936253229,-460.0,0.00018356,2]
[367823444,1750936253238,-599.63577361,0.00018356,2]
[367823445,1750936253250,-460.0,0.00018356,2]
[367823446,1750936253260,-3070.64,0.00018356,2]
[367823447,1750936253269,-463.0,0.00018356,2]
[367823448,1750936253278,-460.0,0.00018356,2]
[367823449,1750936253288,-1127.46,0.00018356,2]
[367823450,1750936253296,-500.1,0.00018356,2]
[367823451,1750936253305,-460.0,0.00018356,2]
[367823452,1750936253314,-486.34,0.00018356,2]
[367823453,1750936253324,-460.0,0.00018356,2]
[367823454,1750936253333,-502.15,0.00018356,2]
[367823455,1750936253342,-741.01,0.00018356,2]
[367823456,1750936253352,-460.0,0.00018356,2]
[367823457,1750936253361,-515.47342929,0.00018356,2]
[367823458,1750936253370,-460.0,0.00018356,2]
[367823459,1750936253379,-585.48,0.00018356,2]
[367823460,1750936253388,-460.0,0.00018356,2]
[367823461,1750936253397,-1171.0,0.00018356,2]
[367823462,1750936253406,-1274.93,0.00018356,2]
[367823463,1750936253415,-460.0,0.00018356,2]
[367823464,1750936253424,-1936.68,0.00018356,2]
[367823465,1750936253433,-460.0,0.00018356,2]
[367823466,1750936253442,-658.14,0.00018356,2]
[367823467,1750936253451,-495.95,0.00018356,2]
[367823468,1750936253460,-460.0,0.00018356,2]
[367823469,1750936253469,-506.76,0.00018356,2]
[367823470,1750936253478,-660.59,0.00018356,2]
[367823471,1750936253487,-498.37,0.00018356,2]
[367823472,1750936253496,-460.0,0.00018356,2]
[367823473,1750936253505,-604.08,0.00018356,2]
[367823474,1750936253514,-2008.32,0.00018356,2]
[367823475,1750936253523,-461.68,0.00018356,2]
[367823476,1750936253532,-2634.32,0.00018356,2]
[367823477,1750936253541,-460.0,0.00018356,2]
[367823478,1750936253550,-936.25,0.00018356,2]
[367823479,1750936253559,-1291.06,0.00018356,2]
[367823480,1750936253569,-354.56730608,0.00018356,2]
[367823481,1750936253579,-461.71,0.00018356,2]
[367823482,1750936253588,-460.0,0.00018356,2]
[367823483,1750936253597,-982.95,0.00018356,2]
[367823484,1750936253606,-460.0,0.00018356,2]
[367823485,1750936253615,-460.0,0.00018356,2]
[367823486,1750936253624,-460.0,0.00018356,2]
[367823487,1750936253633,-1441.22,0.00018356,2]
[367823488,1750936253642,-460.0,0.00018356,2]
[367823489,1750936253652,-460.0,0.00018356,2]
[367823490,1750936253661,-460.0,0.00018356,2]
[367823491,1750936253670,-1583.9,0.00018356,2]
[367823492,1750936253679,-460.0,0.00018356,2]
[367823493,1750936253688,-1308.06,0.00018356,2]
[367823494,1750936253697,-1242.42,0.00018356,2]
[367823495,1750936253706,-630.68,0.00018356,2]
[367823496,1750936253715,-460.0,0.00018356,2]
[367823497,1750936253725,-460.0,0.00018356,2]
[367823498,1750936253734,-531.49,0.00018356,2]
[367823499,1750936253743,-989.78,0.00018356,2]
[367823500,1750936253753,-460.0,0.00018356,2]
[367823501,1750936253763,-460.0,0.00018356,2]
[367823502,1750936253773,-460.0,0.00018356,2]
[367823503,1750936253784,-460.0,0.00018356,2]
[367823504,1750936253794,-460.0,0.00018356,2]
[367823505,1750936253804,-2974.27,0.00018356,2]
[367823506,1750936253813,-479.01,0.00018356,2]
[367823507,1750936253822,-922.68,0.00018356,2]
[367823508,1750936253831,-1630.67,0.00018356,2]
[367823509,1750936253841,-497.3,0.00018356,2]
[367823510,1750936253849,-694.28,0.00018356,2]